Workbook

Sheet Portfólio
R2: Pontos
R3: 100
B26: Seleção de Portfólios | L26: 0.04815283947
C27: Taxas de Retorno | G27: Matriz de Covariâncias - C
A28: Trimestre | B28: a | C28: b | D28: c | F28: Cias. | G28: a | H28: b | I28: c | K28: P | M28: R | R28: Risco | S28: Retorno | U28: Risco | V28: Retorno
A29: 1 | B29: -0.3993 | C29: -0.5363 | D29: 0.2527 | F29: a | G29: =COVAR(B29:B48,B29:B48)*20/19 -> 0.04411700326 | H29: =_xlfn.COVARIANCE.S(B29:B48,C29:C48) -> 0.04815283947 | I29: =COVAR(B29:B48,D29:D48)*20/19 -> 0.01249875963 | K29: =M33/M36 -> 0.3155737705 | M29: =B50 -> 0.09713 | U29: 0.04411700326 | V29: 0.09713 | W29: a
A30: 2 | B30: 0.2852 | C30: 0.472 | D30: -0.0446 | F30: b | G30: =COVAR(C29:C48,B29:B48)*20/19 -> 0.04815283947 | H30: =COVAR(C29:C48,C29:C48)*20/19 -> 0.1039099705 | I30: =COVAR(C29:C48,D29:D48)*20/19 -> 0.02308568737 | K30: =M34/M36 -> 0.356557377 | M30: =C50 -> 0.1109 | U30: 0.1039099705 | V30: 0.1109 | W30: b
A31: 3 | B31: 0.0352 | C31: -0.2399 | D31: 0.0084 | F31: c | G31: =COVAR(D29:D48,B29:B48)*20/19 -> 0.01249875963 | H31: =COVAR(D29:D48,C29:C48)*20/19 -> 0.02308568737 | I31: =COVAR(D29:D48,D29:D48)*20/19 -> 0.05973401839 | K31: =M35/M36 -> 0.3278688525 | M31: =D50 -> 0.099345 | U31: 0.05973401839 | V31: 0.099345 | W31: c
A32: 4 | B32: -0.0863 | C32: 0.3272 | D32: 0.1515
A33: 5 | B33: 0.0988 | C33: 0.4468 | D33: 0.0801 | G33: a | H33: b | I33: c | J33: Total | L33: =RANDBETWEEN(0,100) -> 57 | M33: 77
A34: 6 | B34: 0.2068 | C34: 0.0871 | D34: 0.069 | F34: Partic. PT | G34: =K29 -> 0.3155737705 | H34: =K30 -> 0.356557377 | I34: =K31 -> 0.3278688525 | J34: =SUM(K29:K31) -> 1 | M34: 87
A35: 7 | B35: 0.2184 | C35: -0.032 | D35: 0.3187 | F35: Aplicação | G35: =K29*$I$43 -> 31557.37705 | H35: =K30*$I$43 -> 35655.7377 | I35: =K31*$I$43 -> 32786.88525 | J35: =SUM(G35:I35) -> 100000 | M35: 80
A36: 8 | B36: 0.0948 | C36: 0.2911 | D36: 0.6426 | M36: =SUM(M33:M35) -> 244
A37: 9 | B37: -0.0574 | C37: -0.1441 | D37: -0.0515 | G37: Retorno esperado | I37: =B50*K29+C50*K30+D50*K31 -> 0.1027660246 | J37: : = PT R = | K37: =MMULT(G34:I34,M29:M31) -> 0.1027660246
A38: 10 | B38: 0.3892 | C38: 0.6602 | D38: 0.6192 | G38: Retorno Desejado | I38: 0.1
A39: 11 | B39: 0.0788 | C39: -0.2834 | D39: -0.1737 | K39: PT | O39: S P
A40: 12 | B40: -0.2702 | C40: -0.3957 | D40: -0.1215 | G40: Variância da carteira | I40: =G29*K29^2+H30*K30^2+I31*K31^2+2*(G30*K29*K30+G31*K29*K31+H31*K30*K31) -> 0.04284552585 | J40: : = PT C P = | K40: =G34 -> 0.3155737705 | L40: =H34 -> 0.356557377 | M40: =I34 -> 0.3278688525 | N40: x | O40: =MMULT(G29:I31,K29:K31) -> 0.03518937318 | P40: = | Q40: =MMULT(K40:M40,O40:O42) -> 0.04284552585
A41: 13 | B41: 0.3845 | C41: 0.1928 | D41: -0.0188 | G41: Desvio Padrão | I41: =SQRT(I40) -> 0.2069916082 | O41: 0.05981471748
A42: 14 | B42: 0.2549 | C42: 0.4497 | D42: 0.003 | O42: 0.0317605769
A43: 15 | B43: 0.0099 | C43: 0.01 | D43: -0.269 | G43: Capital Disponível | I43: 100000
A44: 16 | B44: 0.3169 | C44: 0.0349 | D44: 0.4325
A45: 17 | B45: 0.2495 | C45: 0.4279 | D45: -0.0434 | F45: Variância do portfólio
A46: 18 | B46: 0.05 | C46: 0.1263 | D46: -0.0476
A47: 19 | B47: -0.1209 | C47: -0.0209 | D47: 0.0314
A48: 20 | B48: 0.2038 | C48: 0.3443 | D48: 0.1479
A50: Média | B50: =AVERAGE(B29:B48) -> 0.09713 | C50: =AVERAGE(C29:C48) -> 0.1109 | D50: =AVERAGE(D29:D48) -> 0.099345
